{"text_format":"3","workbook":"xlsx","n_sheets":1,"sheets":["ОБЩИЙ"],"not_rendered":{"defined_names":1},"read":"whole","date_system":"1900"}

{"sheet":"ОБЩИЙ","index":0,"n_rows":196,"n_cols":15,"rows_kept":196,"merged":[[0,0,0,14]]}
["ИТОГОВЫЙ протокол по итогам муниципального этапа РОШ по предмету \"Родная (татарская) литература для учащихся-татар школ с русским языком обучения\" в 2020-2021 учебном году "]
["№ п/п","Муниципалитет","Полное наименование образовательного учреждения (по уставу)","Фамилия","Имя","Отчество","Класс","Балл","Апеляционный балл","Итоговый балл","Максимальный балл","Статус","Фамилия, имя, отчество педагога, подготовившего участника олимпиады","Полное наименование образовательного учреждения (по уставу)","Предмет"]
[1,"Приволжский район","Муниципальное бюджетное общеобразовательное учреждение \"Лицей №83 - Центр образования\"","Абдуллин","С.","Н.",7,20.5,null,{"$f":"I3+H3","v":20.5},35,"Участник","Галимова ГульшатНаилевна","Муниципальное бюджетное общеобразовательное учреждение \"Лицей №83 - Центр образования\"","Родная (татарская) литература для обучающихся – татар школ с русским языком обучения"]
[2,"Московский район","Муниципальное бюджетное общеобразовательное учреждение \"Средняя общеобразовательная татарско-русская школа № 34 \" Московского района г.Казани\"","Адгамова","К.","Р.",8,20,null,20,35,"Участник","Березкина ГульназТалгатовна","Муниципальное бюджетное общеобразовательное учреждение \"Средняя общеобразовательная татарско-русская школа № 34 \" Московского района г.Казани\"","Родная (татарская) литература для обучающихся – татар школ с русским языком обучения"]
[3,"Советский район","Муниципальное бюджетное общеобразовательное учреждение \"Гимназия №175\" Советского района г.Казани","Алеева","А.","Н.",10,49,null,{"$f":"I5+H5","v":49},55,"Призер","Гафарова ГульнараГалимхановна","Муниципальное бюджетное общеобразовательное учреждение \"Гимназия №175\" Советского района г.Казани","Родная (татарская) литература для обучающихся – татар школ с русским языком обучения"]
[4,"Советский район","Муниципальное бюджетное общеобразовательное учреждение \"Гимназия №175\" Советского района г.Казани","Алеева","А.","М.",10,44,null,{"$f":"I6+H6","v":44},55,"Призер","Гафарова ГульнараГалимхановна","Муниципальное бюджетное общеобразовательное учреждение \"Гимназия №175\" Советского района г.Казани","Родная (татарская) литература для обучающихся – татар школ с русским языком обучения"]
[5,"Советский район","Муниципальное бюджетное общеобразовательное учреждение \"Гимназия №175\" Советского района г.Казани","Амерханова","Т.","И.",8,29,null,29,35,"Призер","Галиуллина ДиляраАхмадулловна","Муниципальное бюджетное общеобразовательное учреждение \"Гимназия №175\" Советского района г.Казани","Родная (татарская) литература для обучающихся – татар школ с русским языком обучения"]
[6,"Советский район","Муниципальное автономное общеобразовательное учреждение \"Лицей №121 имени Героя Советского Союза С.А.Ахтямова\" Советского района г.Казани","Аппакова","А.","А.",10,30,null,{"$f":"I8+H8","v":30},55,"Участник","Валиуллина РамзияХашимовна","Муниципальное автономное общеобразовательное учреждение \"Лицей №121 имени Героя Советского Союза С.А.Ахтямова\" Советского района г.Казани","Родная (татарская) литература для обучающихся – татар школ с русским языком обучения"]
[7,"Вахитовский район","Муниципальное бюджетное общеобразовательное учреждение \"Средняя общеобразовательная русско-татарская школа №13\"","Асылгареев","И.","Т.",8,6,null,6,35,"Участник","Губайдуллина ФиданияРифкатовна","Муниципальное бюджетное общеобразовательное учреждение \"Средняя общеобразовательная русско-татарская школа №13\"","Родная (татарская) литература для обучающихся – татар школ с русским языком обучения"]
[9,"Ново-Савиновский район","Муниципальное бюджетное общеобразовательное учреждение \"Гимназия №179 - центр образования\" Ново-Савиновского района г.Казани\"","Ахметзянова","Я.","Э.",9,37,3,{"$f":"I10+H10","v":40},40,"Победитель","Ахметзянова АльфияФаруховна","Муниципальное бюджетное общеобразовательное учреждение \"Гимназия №179 - центр образования\" Ново-Савиновского района г.Казани\"","Родная (татарская) литература для обучающихся – татар школ с русским языком обучения"]
[8,"Приволжский район","Муниципальное бюджетное общеобразовательное учреждение \"Гимназия №6\"","Ахметзянова","А.","А.",10,20,null,20,55,"Участник","Гусманова НалияХуснулловна","Муниципальное бюджетное общеобразовательное учреждение \"Гимназия №6\"","Родная (татарская) литература для обучающихся – татар школ с русским языком обучения"]
[10,"Советский район","Муниципальное бюджетное общеобразовательное учреждение \"Средняя общеобразовательная школа № 171 с углубленным изучением отдельных предметов\" Советского района г.Казани","Ахметова","К.","А.",9,27,null,27,40,"Участник","Каримова ЗульфияИлдаровна","Муниципальное бюджетное общеобразовательное учреждение \"Средняя общеобразовательная школа № 171 с углубленным изучением отдельных предметов\" Советского района г.Казани","Родная (татарская) литература для обучающихся – татар школ с русским языком обучения"]
[11,"Приволжский район","Муниципальное бюджетное общеобразовательное учреждение \"Лицей №83 - Центр образования\"","Ахтарьянова","И.","Р.",10,25,null,25,55,"Участник","Галиева АлсуИльгизовна","Муниципальное бюджетное общеобразовательное учреждение \"Лицей №83 - Центр образования\"","Родная (татарская) литература для обучающихся – татар школ с русским языком обучения"]
[12,"Ново-Савиновский район","Муниципальное бюджетное общеобразовательное учреждение \"Средняя общеобразовательная татарско-русская школа №113 с углубленным изучением отдельных предметов имени Героя России М.Р.Ахметшина\" Ново-Савиновского района г. Казани\"","Багирова","К.","Р. К.",9,38,null,38,40,"Призер","Гараева АлинаРашитовна","Муниципальное бюджетное общеобразовательное учреждение \"Средняя общеобразовательная татарско-русская школа №113 с углубленным изучением отдельных предметов имени Героя России М.Р.Ахметшина\" Ново-Савиновского района г. Казани\"","Родная (татарская) литература для обучающихся – татар школ с русским языком обучения"]
[13,"Приволжский район","Муниципальное бюджетное общеобразовательное учреждение \"Гимназия №6\"","Бадрутдинова","К.","М.",11,41,null,41,60,"Участник","Гусманова НалияХуснулловна","Муниципальное бюджетное общеобразовательное учреждение \"Гимназия №6\"","Родная (татарская) литература для обучающихся – татар школ с русским языком обучения"]
[14,"Ново-Савиновский район","Муниципальное бюджетное общеобразовательное учреждение \"Средняя общеобразовательная школа №170 с углубленным изучением отдельных предметов\" Ново-Савиновского района г. Казани\"","Басирова","Г.","Р.",7,23,null,23,35,"Участник","Гарипова ИльгизаРифкатовна","Муниципальное бюджетное общеобразовательное учреждение \"Средняя общеобразовательная школа №170 с углубленным изучением отдельных предметов\" Ново-Савиновского района г. Казани\"","Родная (татарская) литература для обучающихся – татар школ с русским языком обучения"]
[15,"Советский район","Муниципальное бюджетное общеобразовательное учреждение \"Гимназия №175\" Советского района г.Казани","Батыршина","Л.","Р.",10,50,null,50,55,"Призер","Гафарова ГульнараГалимхановна","Муниципальное бюджетное общеобразовательное учреждение \"Гимназия №175\" Советского района г.Казани","Родная (татарская) литература для обучающихся – татар школ с русским языком обучения"]
[16,"Приволжский район","Муниципальное бюджетное общеобразовательное учреждение \"Русско-татарская средняя общеобразовательная школа №129\"","Бикмуллин","И.","Д.",10,24,null,24,55,"Участник","Зиганшина АльфияНурисламовна","Муниципальное бюджетное общеобразовательное учреждение \"Русско-татарская средняя общеобразовательная школа №129\"","Родная (татарская) литература для обучающихся – татар школ с русским языком обучения"]
[17,"Ново-Савиновский район","Муниципальное бюджетное общеобразовательное учреждение \"Средняя общеобразовательная школа №170 с углубленным изучением отдельных предметов\" Ново-Савиновского района г. Казани\"","Бикмуллина","З.","Д.",9,24,null,24,40,"Участник","Халитова ЛилияАзатовна","Муниципальное бюджетное общеобразовательное учреждение \"Средняя общеобразовательная школа №170 с углубленным изучением отдельных предметов\" Ново-Савиновского района г. Казани\"","Родная (татарская) литература для обучающихся – татар школ с русским языком обучения"]
[18,"Вахитовский район","Муниципальное бюджетное общеобразовательное учреждение \"Средняя общеобразовательная русско-татарская школа №13\"","Билалова","К.","В.",11,13,null,13,60,"Участник","Губайдуллина ФиданияРифкатовна","Муниципальное бюджетное общеобразовательное учреждение \"Средняя общеобразовательная русско-татарская школа №13\"","Родная (татарская) литература для обучающихся – татар школ с русским языком обучения"]
[19,"Кировский район","Муниципальное бюджетное общеобразовательное учреждение \"Русско-татарская средняя общеобразовательная школа №81 с углубленным изучением отдельных предметов имени В.А.Григорьева\"","Брехова","Р.","А.",9,34,null,34,40,"Участник","Ахметзянова АльбинаЗуфаровна","Муниципальное бюджетное общеобразовательное учреждение \"Русско-татарская средняя общеобразовательная школа №81 с углубленным изучением отдельных предметов имени В.А.Григорьева\"","Родная (татарская) литература для обучающихся – татар школ с русским языком обучения"]
[20,"Советский район","Муниципальное бюджетное общеобразовательное учреждение \"Лицей № 159\" Советского района г.Казани\"","Бульмакова","К.","Ф.",9,38,null,38,40,"Призер","Шарифуллина СажидаЯкубовна","Муниципальное бюджетное общеобразовательное учреждение \"Лицей № 159\" Советского района г.Казани\"","Родная (татарская) литература для обучающихся – татар школ с русским языком обучения"]
[21,"Ново-Савиновский район","Муниципальное автономное общеобразовательное учреждение \"Лицей №146 \"Ресурс\" Ново-Савиновского района г. Казани\"","Валеева","А.","А.",7,20,null,20,35,"Участник","Гирфанова ЗилараРафаиловна","Муниципальное автономное общеобразовательное учреждение \"Лицей №146 \"Ресурс\" Ново-Савиновского района г. Казани\"","Родная (татарская) литература для обучающихся – татар школ с русским языком обучения"]
[22,"Советский район","Муниципальное бюджетное общеобразовательное учреждение \"Гимназия № 8 -Центр образования\" Советского района г. Казани\"","Валиев","Ф.","Ф.",10,8,null,8,55,"Участник","Мухаметшина ЧулпанФаатовна","Муниципальное бюджетное общеобразовательное учреждение \"Гимназия № 8 -Центр образования\" Советского района г. Казани\"","Родная (татарская) литература для обучающихся – татар школ с русским языком обучения"]
[23,"Советский район","Муниципальное бюджетное общеобразовательное учреждение \"Средняя общеобразовательная школа № 47\" Советского района г. Казани\"","Валиуллин","Г.","И.",8,15,null,15,35,"Участник","Шангараева ГульчачакНургалиевна","Муниципальное бюджетное общеобразовательное учреждение \"Средняя общеобразовательная школа № 47\" Советского района г. Казани\"","Родная (татарская) литература для обучающихся – татар школ с русским языком обучения"]
[24,"Советский район","Муниципальное бюджетное общеобразовательное учреждение \"Лицей № 159\" Советского района г.Казани\"","Валиуллина","С.","А.",11,37,null,{"$f":"I26+H26","v":37},60,"Участник","Галимуллина ЛилияФаргатовна","Муниципальное бюджетное общеобразовательное учреждение \"Лицей № 159\" Советского района г.Казани\"","Родная (татарская) литература для обучающихся – татар школ с русским языком обучения"]
[25,"Советский район","Муниципальное бюджетное общеобразовательное учреждение «Средняя общеобразовательная школа с углубленным изучением отдельных предметов №184 им.М.И.Махмутова»","Варламова","К.","Р.",7,22.5,null,{"$f":"I27+H27","v":22.5},35,"Участник","Ахметова ГульнараАхкамовна","Муниципальное бюджетное общеобразовательное учреждение «Средняя общеобразовательная школа с углубленным изучением отдельных предметов №184 им.М.И.Махмутова»","Родная (татарская) литература для обучающихся – татар школ с русским языком обучения"]
[26,"Советский район","Муниципальное бюджетное общеобразовательное учреждение \"Средняя общеобразовательная русско-татарская школа № 161\" Советского района г.Казани\"","Габдрахманов","И.","И.",9,38,null,{"$f":"I28+H28","v":38},40,"Призер","Хабибуллина КлараАльбертовна","Муниципальное бюджетное общеобразовательное учреждение \"Средняя общеобразовательная русско-татарская школа № 161\" Советского района г.Казани\"","Родная (татарская) литература для обучающихся – татар школ с русским языком обучения"]
[27,"Приволжский район","Муниципальное бюджетное общеобразовательное учреждение \"Гимназия №6\"","Газизов","И.","А.",8,15,null,15,35,"Участник","Гильманова ЭльмираХайдаровна","Муниципальное бюджетное общеобразовательное учреждение \"Гимназия №6\"","Родная (татарская) литература для обучающихся – татар школ с русским языком обучения"]
[28,"Вахитовский район","Муниципальное бюджетное общеобразовательное учреждение \"Средняя общеобразовательная русско-татарская школа №13\"","Гайзуллина","М.","М.",7,19.5,null,{"$f":"I30+H30","v":19.5},35,"Участник","Губайдуллина ФиданияРифкатовна","Муниципальное бюджетное общеобразовательное учреждение \"Средняя общеобразовательная русско-татарская школа №13\"","Родная (татарская) литература для обучающихся – татар школ с русским языком обучения"]
[29,"Ново-Савиновский район","Муниципальное бюджетное общеобразовательное учреждение \"Средняя общеобразовательная школа №170 с углубленным изучением отдельных предметов\" Ново-Савиновского района г. Казани\"","Галеева","Д.","Р.",10,46,6,{"$f":"I31+H31","v":52},55,"Победитель","Гарипова ИльгизаРифкатовна","Муниципальное бюджетное общеобразовательное учреждение \"Средняя общеобразовательная школа №170 с углубленным изучением отдельных предметов\" Ново-Савиновского района г. Казани\"","Родная (татарская) литература для обучающихся – татар школ с русским языком обучения"]
[30,"Советский район","Муниципальное бюджетное общеобразовательное учреждение \"Средняя общеобразовательная школа № 47\" Советского района г. Казани\"","Галимова","Ч.","И.",8,12,null,12,35,"Участник","Шангараева ГульчачакНургалиевна","Муниципальное бюджетное общеобразовательное учреждение \"Средняя общеобразовательная школа № 47\" Советского района г. Казани\"","Родная (татарская) литература для обучающихся – татар школ с русским языком обучения"]
[31,"Вахитовский район","Муниципальное бюджетное общеобразовательное учреждение \"Средняя общеобразовательная русско-татарская школа №13\"","Ганеев","Р.","Р.",11,9,null,{"$f":"I33+H33","v":9},60,"Участник","Губайдуллина ФиданияРифкатовна","Муниципальное бюджетное общеобразовательное учреждение \"Средняя общеобразовательная русско-татарская школа №13\"","Родная (татарская) литература для обучающихся – татар школ с русским языком обучения"]
[32,"Приволжский район","Муниципальное автономное общеобразовательное учреждение \"Гимназия №19\"","Ганиев","А.","Р.",7,9.5,null,{"$f":"I34+H34","v":9.5},35,"Участник","Залялеева АлсуКотдусовна","Муниципальное автономное общеобразовательное учреждение \"Гимназия №19\"","Родная (татарская) литература для обучающихся – татар школ с русским языком обучения"]
[33,"Ново-Савиновский район","Муниципальное бюджетное общеобразовательное учреждение \"Средняя общеобразовательная школа №170 с углубленным изучением отдельных предметов\" Ново-Савиновского района г. Казани\"","Гараева","З.","Ф.",9,25,null,{"$f":"I35+H35","v":25},40,"Участник","Халитова ЛилияАзатовна","Муниципальное бюджетное общеобразовательное учреждение \"Средняя общеобразовательная школа №170 с углубленным изучением отдельных предметов\" Ново-Савиновского района г. Казани\"","Родная (татарская) литература для обучающихся – татар школ с русским языком обучения"]
[36,"Вахитовский район","Муниципальное бюджетное общеобразовательное учреждение \"Гимназия №28\"","Гарифуллина","И.","И.",8,30,null,30,35,"Призер","Шарифуллина РадифаЗуфаровна","Муниципальное бюджетное общеобразовательное учреждение \"Гимназия №28\"","Родная (татарская) литература для обучающихся – татар школ с русским языком обучения"]
[37,"Авиастроительный район","Муниципальное бюджетное общеобразовательное учреждение \"Лицей №145\" Авиастроительного района г.Казани\"","Гарифуллина","К.","Р.",8,27,null,27,35,"Призер","Захарова МарияПавловна","Муниципальное бюджетное общеобразовательное учреждение \"Лицей №145\" Авиастроительного района г.Казани\"","Родная (татарская) литература для обучающихся – татар школ с русским языком обучения"]
[34,"Советский район","Муниципальное бюджетное общеобразовательное учреждение \"Средняя общеобразовательная школа № 144 с углубленным изучением отдельных предметов\" Советского района г.Казани\"","Гарифуллина","А.","И.",11,25,null,{"$f":"I38+H38","v":25},60,"Участник","Тухватуллина ЛилияРинатовна","Муниципальное бюджетное общеобразовательное учреждение \"Средняя общеобразовательная школа № 144 с углубленным изучением отдельных предметов\" Советского района г.Казани\"","Родная (татарская) литература для обучающихся – татар школ с русским языком обучения"]
[35,"Ново-Савиновский район","Государственное автономное общеобразовательное учреждение \"Полилингвальный комплекс \"Адымнар - путь к знаниям и согласию\" г. Казани\"","Гарифуллина","К.","Р.",7,19.5,null,{"$f":"I39+H39","v":19.5},35,"Участник","Габдулина АльмираФердинантовна","Государственное автономное общеобразовательное учреждение \"Полилингвальный комплекс \"Адымнар - путь к знаниям и согласию\" г. Казани\"","Родная (татарская) литература для обучающихся – татар школ с русским языком обучения"]
[39,"Приволжский район","Муниципальное бюджетное общеобразовательное учреждение \"Русско-татарская средняя общеобразовательная школа №136\"","Гатауллина","А.","Ф.",8,26,null,26,35,"Призер","Сайфутдинова ЧулпанХамзовна","Муниципальное бюджетное общеобразовательное учреждение \"Русско-татарская средняя общеобразовательная школа №136\"","Родная (татарская) литература для обучающихся – татар школ с русским языком обучения"]
[38,"Авиастроительный район","Муниципальное бюджетное общеобразовательное учреждение \"Гимназия  №33\" Авиастроительного района г.Казани\"","Гатауллина","А.","Р.",10,10,null,{"$f":"I41+H41","v":10},55,"Участник","Петрова ГузалияРузаловна","Муниципальное бюджетное общеобразовательное учреждение \"Гимназия  №33\" Авиастроительного района г.Казани\"","Родная (татарская) литература для обучающихся – татар школ с русским языком обучения"]
[40,"Авиастроительный район","Муниципальное бюджетное общеобразовательное учреждение \"Средняя общеобразовательная школа № 54 с углубленным изучением отдельных предметов\" Авиастроительного района г.Казани\"","Гатина","З.","Р.",8,23,null,23,35,"Участник","Аскарова РаисаРаисовна","Муниципальное бюджетное общеобразовательное учреждение \"Средняя общеобразовательная школа № 54 с углубленным изучением отдельных предметов\" Авиастроительного района г.Казани\"","Родная (татарская) литература для обучающихся – татар школ с русским языком обучения"]
[41,"Приволжский район","Муниципальное бюджетное общеобразовательное учреждение \"Гимназия №6\"","Гаффаров","М.","М.",10,9,null,{"$f":"I43+H43","v":9},55,"Участник","Гусманова НалияХуснулловна","Муниципальное бюджетное общеобразовательное учреждение \"Гимназия №6\"","Родная (татарская) литература для обучающихся – татар школ с русским языком обучения"]
[43,"Советский район","Муниципальное бюджетное общеобразовательное учреждение \"Гимназия № 90\" Советского района г.Казани\"","Гильманова","М.","М.",8,26,null,26,35,"Призер","Салахова ИлюсаАдиповна","Муниципальное бюджетное общеобразовательное учреждение \"Гимназия № 90\" Советского района г.Казани\"","Родная (татарская) литература для обучающихся – татар школ с русским языком обучения"]
[42,"Советский район","Муниципальное бюджетное общеобразовательное учреждение \"Гимназия № 20 имени Абдуллы Алиша\" Советского района города Казани\"","Гильманова","Д.","Р.",10,25,null,{"$f":"I45+H45","v":25},55,"Участник","Фахрутдинова ГульшатМухаметовна","Муниципальное бюджетное общеобразовательное учреждение \"Гимназия № 20 имени Абдуллы Алиша\" Советского района города Казани\"","Родная (татарская) литература для обучающихся – татар школ с русским языком обучения"]
[44,"Кировский район","МБОУ \"Политехнический лицей № 182\"","Гильмутдинов","А.","Ф.",8,26,null,26,35,"Призер","Мингалиева ГульназРавильевна","МБОУ \"Политехнический лицей № 182\"","Родная (татарская) литература для обучающихся – татар школ с русским языком обучения"]
[45,"Советский район","Муниципальное бюджетное общеобразовательное учреждение \"Лицей № 159\" Советского района г.Казани\"","Гильмутдинова","А.","И.",9,34,null,{"$f":"I47+H47","v":34},40,"Участник","Исмагилова ГульнурНаиловна","Муниципальное бюджетное общеобразовательное учреждение \"Лицей № 159\" Советского района г.Казани\"","Родная (татарская) литература для обучающихся – татар школ с русским языком обучения"]
[46,"Авиастроительный район","Муниципальное бюджетное общеобразовательное учреждение \"Гимназия  №33\" Авиастроительного района г.Казани\"","Гиниатуллин","Р.","Р.",8,25,null,25,35,"Участник","Мусаяпова НасимаХайбулловна","Муниципальное бюджетное общеобразовательное учреждение \"Гимназия  №33\" Авиастроительного района г.Казани\"","Родная (татарская) литература для обучающихся – татар школ с русским языком обучения"]
[47,"Советский район","Муниципальное автономное общеобразовательное учреждение \"Лицей №121 имени Героя Советского Союза С.А.Ахтямова\" Советского района г.Казани","Гисматуллина","Д.","Р.",11,53,null,{"$f":"I49+H49","v":53},60,"Победитель","Валиуллина РамзияХашимовна","Муниципальное автономное общеобразовательное учреждение \"Лицей №121 имени Героя Советского Союза С.А.Ахтямова\" Советского района г.Казани","Родная (татарская) литература для обучающихся – татар школ с русским языком обучения"]
[48,"Приволжский район","Муниципальное бюджетное общеобразовательное учреждение \"Гимназия №6\"","Губайдуллина","Р.","И.",8,16,null,16,35,"Участник","Гильманова ЭльмираХайдаровна","Муниципальное бюджетное общеобразовательное учреждение \"Гимназия №6\"","Родная (татарская) литература для обучающихся – татар школ с русским языком обучения"]
[49,"Ново-Савиновский район","Государственное автономное общеобразовательное учреждение \"Полилингвальный комплекс \"Адымнар - путь к знаниям и согласию\" г. Казани\"","Давлетшин","И.","И.",7,13,null,{"$f":"I51+H51","v":13},35,"Участник","Гараева ЛилияИдрисовна","Государственное автономное общеобразовательное учреждение \"Полилингвальный комплекс \"Адымнар - путь к знаниям и согласию\" г. Казани\"","Родная (татарская) литература для обучающихся – татар школ с русским языком обучения"]
[50,"Приволжский район","Муниципальное бюджетное общеобразовательное учреждение \"Гимназия №6\"","Давлетшина","А.","Р.",8,17,null,17,35,"Участник","Низамиева ЛилияНазимовна","Муниципальное бюджетное общеобразовательное учреждение \"Гимназия №6\"","Родная (татарская) литература для обучающихся – татар школ с русским языком обучения"]
[51,"Кировский район","Муниципальное бюджетное общеобразовательное учреждение \"Средняя общеобразовательная школа №70 с углубленным изучениемотдельных предметов\" Кировского района г. Казани\"","Джабиева","Ж.","Н.",8,19,null,19,35,"Участник","Валиева ГузельРазяповна","Муниципальное бюджетное общеобразовательное учреждение \"Средняя общеобразовательная школа №70 с углубленным изучениемотдельных предметов\" Кировского района г. Казани\"","Родная (татарская) литература для обучающихся – татар школ с русским языком обучения"]
[52,"Советский район","Муниципальное бюджетное общеобразовательное учреждение \"Лицей № 159\" Советского района г.Казани\"","Зайнуллина","А.","М.",8,18,null,18,35,"Участник","Галимуллина ЛилияФаргатовна","Муниципальное бюджетное общеобразовательное учреждение \"Лицей № 159\" Советского района г.Казани\"","Родная (татарская) литература для обучающихся – татар школ с русским языком обучения"]
[54,"Советский район","Муниципальное бюджетное общеобразовательное учреждение \"Средняя общеобразовательная школа № 171 с углубленным изучением отдельных предметов\" Советского района г.Казани","Закиров","М.","А.",7,23.5,null,{"$f":"I55+H55","v":23.5},35,"Призер","Гумарова ГалинаАлександровна","Муниципальное бюджетное общеобразовательное учреждение \"Средняя общеобразовательная школа № 171 с углубленным изучением отдельных предметов\" Советского района г.Казани","Родная (татарская) литература для обучающихся – татар школ с русским языком обучения"]
[53,"Авиастроительный район","Муниципальное бюджетное общеобразовательное учреждение \"Гимназия №14\" Авиастроительного района г.Казани\"","Закиров","И.","Р.",11,41,null,41,60,"Участник","Шайхутдинова ЗульфияАдгамовна","Муниципальное бюджетное общеобразовательное учреждение \"Гимназия №14\" Авиастроительного района г.Казани\"","Родная (татарская) литература для обучающихся – татар школ с русским языком обучения"]
[55,"Советский район","Муниципальное автономное общеобразовательное учреждение \"Лицей №121 имени Героя Советского Союза С.А.Ахтямова\" Советского района г.Казани","Закиров","А.","А.",9,32,null,32,40,"Участник","Валиуллина РамзияХашимовна","Муниципальное автономное общеобразовательное учреждение \"Лицей №121 имени Героя Советского Союза С.А.Ахтямова\" Советского района г.Казани","Родная (татарская) литература для обучающихся – татар школ с русским языком обучения"]
[58,"Советский район","Муниципальное бюджетное общеобразовательное учреждение \"Средняя общеобразовательная школа № 171 с углубленным изучением отдельных предметов\" Советского района г.Казани","Закирова","З.","Р.",11,50,null,50,60,"Призер","Каримова ЗульфияИлдаровна","Муниципальное бюджетное общеобразовательное учреждение \"Средняя общеобразовательная школа № 171 с углубленным изучением отдельных предметов\" Советского района г.Казани","Родная (татарская) литература для обучающихся – татар школ с русским языком обучения"]
[59,"Советский район","Муниципальное бюджетное общеобразовательное учреждение «Средняя общеобразовательная школа с углубленным изучением отдельных предметов №184 им.М.И.Махмутова»","Закирова","А.","А.",7,24,null,24,35,"Призер","Ахметова ГульнараАхкамовна","Муниципальное бюджетное общеобразовательное учреждение «Средняя общеобразовательная школа с углубленным изучением отдельных предметов №184 им.М.И.Махмутова»","Родная (татарская) литература для обучающихся – татар школ с русским языком обучения"]
[61,"Авиастроительный район","Муниципальное бюджетное общеобразовательное учреждение \"Лицей №26 им. М.Джалиля\" Авиастроительного района г.Казани\"","Закирова","Н.","Р.",9,37,null,37,40,"Призер","Камалеева ЗолфияМиннуровна","Муниципальное бюджетное общеобразовательное учреждение \"Лицей №26 им. М.Джалиля\" Авиастроительного района г.Казани\"","Родная (татарская) литература для обучающихся – татар школ с русским языком обучения"]
[56,"Приволжский район","Муниципальное бюджетное общеобразовательное учреждение \"Лицей №35 - образовательный центр \"Галактика\" Приволжского района города Казани\"","Закирова","И.","Х.",10,37,null,37,55,"Участник","Гилязова ГульнараФаиловна","Муниципальное бюджетное общеобразовательное учреждение \"Лицей №35 - образовательный центр \"Галактика\" Приволжского района города Казани\"","Родная (татарская) литература для обучающихся – татар школ с русским языком обучения"]
[60,"Авиастроительный район","Муниципальное бюджетное общеобразовательное учреждение \"Лицей №26 им. М.Джалиля\" Авиастроительного района г.Казани\"","Закирова","Л.","Р.",8,25,null,25,35,"Участник","Камалеева ЗолфияМиннуровна","Муниципальное бюджетное общеобразовательное учреждение \"Лицей №26 им. М.Джалиля\" Авиастроительного района г.Казани\"","Родная (татарская) литература для обучающихся – татар школ с русским языком обучения"]
[57,"Советский район","Муниципальное бюджетное общеобразовательное учреждение \"Средняя общеобразовательная школа № 144 с углубленным изучением отдельных предметов\" Советского района г.Казани\"","Закирова","А.","Р.",10,19,null,{"$f":"I63+H63","v":19},55,"Участник","Муслимова РамзияВакиповна","Муниципальное бюджетное общеобразовательное учреждение \"Средняя общеобразовательная школа № 144 с углубленным изучением отдельных предметов\" Советского района г.Казани\"","Родная (татарская) литература для обучающихся – татар школ с русским языком обучения"]
[62,"Советский район","Муниципальное бюджетное общеобразовательное учреждение \"Средняя общеобразовательная школа № 47\" Советского района г. Казани\"","Закирова","А.","Р.",9,23,null,{"$f":"I64+H64","v":23},40,"Участник","Шангараева ГульчачакНургалиевна","Муниципальное бюджетное общеобразовательное учреждение \"Средняя общеобразовательная школа № 47\" Советского района г. Казани\"","Родная (татарская) литература для обучающихся – татар школ с русским языком обучения"]
[63,"Московский район","Муниципальное бюджетное общеобразовательное учреждение \"Гимназия № 9\" Московского района г. Казани\"","Залялиева","Э.","Р.",10,39,null,{"$f":"I65+H65","v":39},55,"Участник","Губайдуллина ЗульфияРавиловна","Муниципальное бюджетное общеобразовательное учреждение \"Гимназия № 9\" Московского района г. Казани\"","Родная (татарская) литература для обучающихся – татар школ с русским языком обучения"]
[64,"Советский район","Муниципальное бюджетное общеобразовательное учреждение \"Гимназия №175\" Советского района г.Казани","Залялов","А.","А.",9,37,null,{"$f":"I66+H66","v":37},40,"Призер","Зарипова АлинаАнисовна","Муниципальное бюджетное общеобразовательное учреждение \"Гимназия №175\" Советского района г.Казани","Родная (татарская) литература для обучающихся – татар школ с русским языком обучения"]
[65,"Приволжский район","Муниципальное бюджетное общеобразовательное учреждение \"Гимназия №6\"","Зантемирова","А.","И.",8,22,null,22,35,"Участник","Гайнутдинова АлинаРустамовна","Муниципальное бюджетное общеобразовательное учреждение \"Гимназия №6\"","Родная (татарская) литература для обучающихся – татар школ с русским языком обучения"]
[67,"Ново-Савиновский район","Муниципальное бюджетное общеобразовательное учреждение \"Средняя общеобразовательная школа №170 с углубленным изучением отдельных предметов\" Ново-Савиновского района г. Казани\"","Зарипова","Л.","Р.",8,32,null,32,35,"Победитель","Гарипова ИльгизаРифкатовна","Муниципальное бюджетное общеобразовательное учреждение \"Средняя общеобразовательная школа №170 с углубленным изучением отдельных предметов\" Ново-Савиновского района г. Казани\"","Родная (татарская) литература для обучающихся – татар школ с русским языком обучения"]
[68,"Советский район","Муниципальное бюджетное общеобразовательное учреждение \"Гимназия №175\" Советского района г.Казани","Зарипова","Р.","Р.",9,37,null,{"$f":"I69+H69","v":37},40,"Призер","Зарипова АлинаАнисовна","Муниципальное бюджетное общеобразовательное учреждение \"Гимназия №175\" Советского района г.Казани","Родная (татарская) литература для обучающихся – татар школ с русским языком обучения"]
[66,"Советский район","Муниципальное бюджетное общеобразовательное учреждение \"Средняя общеобразовательная школа № 171 с углубленным изучением отдельных предметов\" Советского района г.Казани","Зарипова","А.","А.",7,20,null,20,35,"Участник","Гумарова ГалинаАлександровна","Муниципальное бюджетное общеобразовательное учреждение \"Средняя общеобразовательная школа № 171 с углубленным изучением отдельных предметов\" Советского района г.Казани","Родная (татарская) литература для обучающихся – татар школ с русским языком обучения"]
[69,"Приволжский район","Муниципальное бюджетное общеобразовательное учреждение \"Татарско-русская средняя общеобразовательная школа №10 с углубленным изучением отдельных предметов\"","Зиннатов","И.","И.",9,28,null,28,40,"Участник","Хайрутдинова АлсуНаиловна","Муниципальное бюджетное общеобразовательное учреждение \"Татарско-русская средняя общеобразовательная школа №10 с углубленным изучением отдельных предметов\"","Родная (татарская) литература для обучающихся – татар школ с русским языком обучения"]
[70,"Кировский район","Муниципальное автономное общеобразовательное учреждение \"Гимназия - интернат №4\" Кировского района г.Казани","Зябирова","А.","Р.",9,23,null,23,40,"Участник","Садыкова РамзияГабидулловна","Муниципальное автономное общеобразовательное учреждение \"Гимназия - интернат №4\" Кировского района г.Казани","Родная (татарская) литература для обучающихся – татар школ с русским языком обучения"]
[71,"Советский район","Муниципальное автономное общеобразовательное учреждение \"Лицей №121 имени Героя Советского Союза С.А.Ахтямова\" Советского района г.Казани","Ибатуллина","З.","Ф.",9,32,null,32,40,"Участник","Валиуллина РамзияХашимовна","Муниципальное автономное общеобразовательное учреждение \"Лицей №121 имени Героя Советского Союза С.А.Ахтямова\" Советского района г.Казани","Родная (татарская) литература для обучающихся – татар школ с русским языком обучения"]
[72,"Ново-Савиновский район","Государственное автономное общеобразовательное учреждение \"Полилингвальный комплекс \"Адымнар - путь к знаниям и согласию\" г. Казани\"","Ибнеева","Д.","М.",7,26.5,null,26.5,35,"Призер","Габдулина АльмираФердинантовна","Государственное автономное общеобразовательное учреждение \"Полилингвальный комплекс \"Адымнар - путь к знаниям и согласию\" г. Казани\"","Родная (татарская) литература для обучающихся – татар школ с русским языком обучения"]
[74,"Авиастроительный район","Муниципальное бюджетное общеобразовательное учреждение \"Средняя общеобразовательная школа с углубленным изучением отдельных предметов №62\" Авиастроительного района г.Казани\"","Ибрагимова","А.","А.",7,35,null,35,35,"Победитель","Ибрагимова ЭнджеСалимовна","Муниципальное бюджетное общеобразовательное учреждение \"Средняя общеобразовательная школа с углубленным изучением отдельных предметов №62\" Авиастроительного района г.Казани\"","Родная (татарская) литература для обучающихся – татар школ с русским языком обучения"]
[73,"Приволжский район","Муниципальное бюджетное общеобразовательное учреждение \"Лицей №83 - Центр образования\"","Ибрагимова","Р.","Р.",10,40,null,40,55,"Участник","Сафина Гульназ Васильевна","МБОУ\"Лицей№83-ЦО\"","Родная (татарская) литература для обучающихся – татар школ с русским языком обучения"]
[75,"Кировский район","Муниципальное автономное общеобразовательное учреждение \"Гимназия - интернат №4\" Кировского района г.Казани","Ильясова","Г.","А.",7,14,null,14,35,"Участник","Садыкова РамзияГабидулловна","Муниципальное автономное общеобразовательное учреждение \"Гимназия - интернат №4\" Кировского района г.Казани","Родная (татарская) литература для обучающихся – татар школ с русским языком обучения"]
[76,"Приволжский район","Муниципальное бюджетное общеобразовательное учреждение \"Лицей №83 - Центр образования\"","Исмагилов","И.","Ш.",7,23,null,23,35,"Участник","Галиева АлсуИльгизовна","Муниципальное бюджетное общеобразовательное учреждение \"Лицей №83 - Центр образования\"","Родная (татарская) литература для обучающихся – татар школ с русским языком обучения"]
[77,"Советский район","Муниципальное бюджетное общеобразовательное учреждение \"Лицей № 159\" Советского района г.Казани\"","Исмагилова","А.","А.",8,22,null,22,35,"Участник","Галимуллина ЛилияФаргатовна","Муниципальное бюджетное общеобразовательное учреждение \"Лицей № 159\" Советского района г.Казани\"","Родная (татарская) литература для обучающихся – татар школ с русским языком обучения"]
[78,"Советский район","Муниципальное бюджетное общеобразовательное учреждение «Средняя общеобразовательная школа с углубленным изучением отдельных предметов №184 им.М.И.Махмутова»","Исхакова","З.","И.",8,18,null,18,35,"Участник","Хафизова ИльхамияМуллануровна","Муниципальное бюджетное общеобразовательное учреждение «Средняя общеобразовательная школа с углубленным изучением отдельных предметов №184 им.М.И.Махмутова»","Родная (татарская) литература для обучающихся – татар школ с русским языком обучения"]
[79,"Кировский район","Муниципальное автономное общеобразовательное учреждение \"Гимназия - интернат №4\" Кировского района г.Казани","Ихсанова","А.","А.",9,25,null,{"$f":"I81+H81","v":25},40,"Участник","Садыкова РамзияГабидулловна","Муниципальное автономное общеобразовательное учреждение \"Гимназия - интернат №4\" Кировского района г.Казани","Родная (татарская) литература для обучающихся – татар школ с русским языком обучения"]
[80,"Советский район","Муниципальное бюджетное общеобразовательное учреждение \"Гимназия № 90\" Советского района г.Казани\"","Камалеева","З.","С.",11,46,null,{"$f":"I82+H82","v":46},60,"Участник","Габдулхакова ГульчачакРашитовна","Муниципальное бюджетное общеобразовательное учреждение \"Гимназия № 90\" Советского района г.Казани\"","Родная (татарская) литература для обучающихся – татар школ с русским языком обучения"]
[81,"Советский район","Муниципальное автономное общеобразовательное учреждение \"Лицей №121 имени Героя Советского Союза С.А.Ахтямова\" Советского района г.Казани","Камалиев","К.","И.",10,37,null,{"$f":"I83+H83","v":37},55,"Участник","Валиуллина РамзияХашимовна","Муниципальное автономное общеобразовательное учреждение \"Лицей №121 имени Героя Советского Союза С.А.Ахтямова\" Советского района г.Казани","Родная (татарская) литература для обучающихся – татар школ с русским языком обучения"]
[82,"Советский район","Муниципальное бюджетное общеобразовательное учреждение \"Средняя общеобразовательная школа № 47\" Советского района г. Казани\"","Каримова","Н.","И.",9,19.5,null,{"$f":"I84+H84","v":19.5},40,"Участник","Шангараева ГульчачакНургалиевна","Муниципальное бюджетное общеобразовательное учреждение \"Средняя общеобразовательная школа № 47\" Советского района г. Казани\"","Родная (татарская) литература для обучающихся – татар школ с русским языком обучения"]
[83,"Авиастроительный район","Муниципальное бюджетное общеобразовательное учреждение \"Лицей №26 им. М.Джалиля\" Авиастроительного района г.Казани\"","Каюмова","А.","Р.",8,26,null,26,35,"Призер","Камалеева ЗолфияМиннуровна","Муниципальное бюджетное общеобразовательное учреждение \"Лицей №26 им. М.Джалиля\" Авиастроительного района г.Казани\"","Родная (татарская) литература для обучающихся – татар школ с русским языком обучения"]
[84,"Авиастроительный район","Муниципальное бюджетное общеобразовательное учреждение \"Гимназия  №33\" Авиастроительного района г.Казани\"","Киямов","И.","И.",9,34,null,{"$f":"I86+H86","v":34},40,"Участник","Петрова ГузалияРузаловна","Муниципальное бюджетное общеобразовательное учреждение \"Гимназия  №33\" Авиастроительного района г.Казани\"","Родная (татарская) литература для обучающихся – татар школ с русским языком обучения"]
[85,"Ново-Савиновский район","Муниципальное бюджетное общеобразовательное учреждение \"Средняя общеобразовательная школа №170 с углубленным изучением отдельных предметов\" Ново-Савиновского района г. Казани\"","Кулеева","Э.","Р.",8,24,null,24,35,"Участник","Гарипова ИльгизаРифкатовна","Муниципальное бюджетное общеобразовательное учреждение \"Средняя общеобразовательная школа №170 с углубленным изучением отдельных предметов\" Ново-Савиновского района г. Казани\"","Родная (татарская) литература для обучающихся – татар школ с русским языком обучения"]
[87,"Приволжский район","Муниципальное бюджетное общеобразовательное учреждение \"Лицей №78 \"Фарватер\"","Латыпова","А.","Р.",8,23,null,23,35,"Участник","Вакилова ЗиляЮнусовна","Муниципальное бюджетное общеобразовательное учреждение \"Лицей №78 \"Фарватер\"","Родная (татарская) литература для обучающихся – татар школ с русским языком обучения"]
[86,"Приволжский район","Муниципальное бюджетное общеобразовательное учреждение \"Гимназия №6\"","Латыпова","М.","И.",7,4.5,null,{"$f":"I89+H89","v":4.5},35,"Участник","Гильманова ЭльмираХайдаровна","Муниципальное бюджетное общеобразовательное учреждение \"Гимназия №6\"","Родная (татарская) литература для обучающихся – татар школ с русским языком обучения"]
[88,"Советский район","Муниципальное бюджетное общеобразовательное учреждение \"Гимназия №175\" Советского района г.Казани","Лотфуллина","И.","И.",9,32,null,{"$f":"I90+H90","v":32},40,"Участник","Зарипова АлинаАнисовна","Муниципальное бюджетное общеобразовательное учреждение \"Гимназия №175\" Советского района г.Казани","Родная (татарская) литература для обучающихся – татар школ с русским языком обучения"]
[89,"Ново-Савиновский район","Муниципальное бюджетное общеобразовательное учреждение \"Гимназия №7 имени Героя России А.В.Козина\" Ново-Савиновского района г. Казани\"","Мансуров","М.","Э.",11,47,null,{"$f":"I91+H91","v":47},60,"Участник","Набиуллина ТаслимаГиниятовна","Муниципальное бюджетное общеобразовательное учреждение \"Гимназия №7 имени Героя России А.В.Козина\" Ново-Савиновского района г. Казани\"","Родная (татарская) литература для обучающихся – татар школ с русским языком обучения"]
[90,"Ново-Савиновский район","Государственное автономное общеобразовательное учреждение \"Полилингвальный комплекс \"Адымнар - путь к знаниям и согласию\" г. Казани\"","Мансуров","Ш.","А.",8,21,null,21,35,"Участник","Ханнанов РамильГумарович","Государственное автономное общеобразовательное учреждение \"Полилингвальный комплекс \"Адымнар - путь к знаниям и согласию\" г. Казани\"","Родная (татарская) литература для обучающихся – татар школ с русским языком обучения"]
[91,"Приволжский район","Муниципальное автономное общеобразовательное учреждение \"Гимназия №19\"","Манюрова","А.","И.",8,22,null,22,35,"Участник","Гизатуллина ЛинизаМинехурматулловна","Муниципальное автономное общеобразовательное учреждение \"Гимназия №19\"","Родная (татарская) литература для обучающихся – татар школ с русским языком обучения"]
[92,"Приволжский район","Муниципальное бюджетное общеобразовательное учреждение \"Лицей №78 \"Фарватер\"","Марданова","Г.","Д.",8,28,null,28,35,"Призер","Инсафутдинова МиляушаТальгатовна","Муниципальное бюджетное общеобразовательное учреждение \"Лицей №78 \"Фарватер\"","Родная (татарская) литература для обучающихся – татар школ с русским языком обучения"]
[93,"Советский район","Муниципальное бюджетное общеобразовательное учреждение \"Средняя общеобразовательная школа № 169\" Советского района г.Казани\"","Медова","К.","В.",11,49,null,{"$f":"I95+H95","v":49},60,"Призер","Саликиева ВалентинаМихайловна","Муниципальное бюджетное общеобразовательное учреждение \"Средняя общеобразовательная школа № 169\" Советского района г.Казани\"","Родная (татарская) литература для обучающихся – татар школ с русским языком обучения"]
[94,"Ново-Савиновский район","Муниципальное бюджетное общеобразовательное учреждение \"Гимназия №179 - центр образования\" Ново-Савиновского района г.Казани\"","Мингазов","А.","А.",9,38,2,{"$f":"I96+H96","v":40},40,"Победитель","Ахметзянова АльфияФаруховна","Муниципальное бюджетное общеобразовательное учреждение \"Гимназия №179 - центр образования\" Ново-Савиновского района г.Казани\"","Родная (татарская) литература для обучающихся – татар школ с русским языком обучения"]
[95,"Ново-Савиновский район","Государственное автономное общеобразовательное учреждение \"Полилингвальный комплекс \"Адымнар - путь к знаниям и согласию\" г. Казани\"","Миндиярова","А.","Р.",8,12,null,12,35,"Участник","Гараева ЛилияИдрисовна","Государственное автономное общеобразовательное учреждение \"Полилингвальный комплекс \"Адымнар - путь к знаниям и согласию\" г. Казани\"","Родная (татарская) литература для обучающихся – татар школ с русским языком обучения"]
[96,"Советский район","Муниципальное бюджетное общеобразовательное учреждение \"Гимназия №175\" Советского района г.Казани","Минникаева","З.","А.",7,22.5,null,{"$f":"I98+H98","v":22.5},35,"Участник","Габдулвалиева РамзияНаилеавна","Муниципальное бюджетное общеобразовательное учреждение \"Гимназия №175\" Советского района г.Казани","Родная (татарская) литература для обучающихся – татар школ с русским языком обучения"]
[97,"Авиастроительный район","Муниципальное бюджетное общеобразовательное учреждение \"Средняя общеобразовательная школа № 54 с углубленным изучением отдельных предметов\" Авиастроительного района г.Казани\"","Миннулина","А.","И.",8,20,null,20,35,"Участник","Аскарова РаисаРаисовна","Муниципальное бюджетное общеобразовательное учреждение \"Средняя общеобразовательная школа № 54 с углубленным изучением отдельных предметов\" Авиастроительного района г.Казани\"","Родная (татарская) литература для обучающихся – татар школ с русским языком обучения"]
[98,"Советский район","Муниципальное автономное общеобразовательное учреждение \"Лицей №121 имени Героя Советского Союза С.А.Ахтямова\" Советского района г.Казани","Мирсияпова","Д.","Р.",11,44,null,{"$f":"I100+H100","v":44},60,"Участник","Валиуллина РамзияХашимовна","Муниципальное автономное общеобразовательное учреждение \"Лицей №121 имени Героя Советского Союза С.А.Ахтямова\" Советского района г.Казани","Родная (татарская) литература для обучающихся – татар школ с русским языком обучения"]
[99,"Советский район","Муниципальное бюджетное общеобразовательное учреждение \"Гимназия №175\" Советского района г.Казани","Мифтахова","А.","Р.",7,24.5,null,{"$f":"I101+H101","v":24.5},35,"Призер","Габдулвалиева РамзияНаилеавна","Муниципальное бюджетное общеобразовательное учреждение \"Гимназия №175\" Советского района г.Казани","Родная (татарская) литература для обучающихся – татар школ с русским языком обучения"]
[100,"Вахитовский район","Муниципальное бюджетное общеобразовательное учреждение \"Средняя общеобразовательная русско-татарская школа №13\"","Михайлова","Р.","И.",10,19,null,{"$f":"I102+H102","v":19},55,"Участник","Губайдуллина ФиданияРифкатовна","Муниципальное бюджетное общеобразовательное учреждение \"Средняя общеобразовательная русско-татарская школа №13\"","Родная (татарская) литература для обучающихся – татар школ с русским языком обучения"]
[101,"Авиастроительный район","Муниципальное бюджетное общеобразовательное учреждение \"Гимназия  №33\" Авиастроительного района г.Казани\"","Мубаракшина","А.","Ф.",9,35,null,{"$f":"I103+H103","v":35},40,"Участник","Шакирова РасулаГабделвалиевна","Муниципальное бюджетное общеобразовательное учреждение \"Гимназия  №33\" Авиастроительного района г.Казани\"","Родная (татарская) литература для обучающихся – татар школ с русским языком обучения"]
[102,"Советский район","Муниципальное бюджетное общеобразовательное учреждение «Средняя общеобразовательная школа с углубленным изучением отдельных предметов №184 им.М.И.Махмутова»","Мударисов","С.","З.",8,17,null,17,35,"Участник","Хафизова ИльхамияМуллануровна","Муниципальное бюджетное общеобразовательное учреждение «Средняя общеобразовательная школа с углубленным изучением отдельных предметов №184 им.М.И.Махмутова»","Родная (татарская) литература для обучающихся – татар школ с русским языком обучения"]
[103,"Авиастроительный район","Муниципальное бюджетное общеобразовательное учреждение \"Гимназия  №33\" Авиастроительного района г.Казани\"","Музипова","А.","И.",7,9.5,null,{"$f":"I105+H105","v":9.5},35,"Участник","Хуснутдинова АльбинаАнваровна","Муниципальное бюджетное общеобразовательное учреждение \"Гимназия  №33\" Авиастроительного района г.Казани\"","Родная (татарская) литература для обучающихся – татар школ с русским языком обучения"]
[104,"Советский район","Муниципальное бюджетное общеобразовательное учреждение \"Гимназия № 8 -Центр образования\" Советского района г. Казани\"","Мукминов","А.","А.",10,5,null,{"$f":"I106+H106","v":5},55,"Участник","Мухаметшина ЧулпанФаатовна","Муниципальное бюджетное общеобразовательное учреждение \"Гимназия № 8 -Центр образования\" Советского района г. Казани\"","Родная (татарская) литература для обучающихся – татар школ с русским языком обучения"]
[105,"Приволжский район","Муниципальное бюджетное общеобразовательное учреждение \"Татарско-русская средняя общеобразовательная школа №68 с углубленным изучением отдельных предметов\"","Муллагалиева","К.","Н.",9,34,null,{"$f":"I107+H107","v":34},40,"Участник","Андреева ЕленаВасильевна","Муниципальное бюджетное общеобразовательное учреждение \"Татарско-русская средняя общеобразовательная школа №68 с углубленным изучением отдельных предметов\"","Родная (татарская) литература для обучающихся – татар школ с русским языком обучения"]
[106,"Советский район","Муниципальное бюджетное общеобразовательное учреждение \"Средняя общеобразовательная школа № 47\" Советского района г. Казани\"","Муллахметова","Л.","Р.",9,25,null,{"$f":"I108+H108","v":25},40,"Участник","Шангараева ГульчачакНургалиевна","Муниципальное бюджетное общеобразовательное учреждение \"Средняя общеобразовательная школа № 47\" Советского района г. Казани\"","Родная (татарская) литература для обучающихся – татар школ с русским языком обучения"]
[107,"Советский район","Муниципальное бюджетное общеобразовательное учреждение \"Гимназия №175\" Советского района г.Казани","Мусина","М.","Р.",11,51,null,{"$f":"I109+H109","v":51},60,"Призер","Ахтямова ГульназМингалиевна","Муниципальное бюджетное общеобразовательное учреждение \"Гимназия №175\" Советского района г.Казани","Родная (татарская) литература для обучающихся – татар школ с русским языком обучения"]
[108,"Авиастроительный район","Муниципальное бюджетное общеобразовательное учреждение \"Лицей №26 им. М.Джалиля\" Авиастроительного района г.Казани\"","Мустафина","З.","Р.",8,27,null,27,35,"Призер","Камалеева ЗолфияМиннуровна","Муниципальное бюджетное общеобразовательное учреждение \"Лицей №26 им. М.Джалиля\" Авиастроительного района г.Казани\"","Родная (татарская) литература для обучающихся – татар школ с русским языком обучения"]
[109,"Приволжский район","Муниципальное бюджетное общеобразовательное учреждение \"Русско-татарская средняя общеобразовательная школа №129\"","Мухамедзянова","Э.","А.",11,25,null,{"$f":"I111+H111","v":25},60,"Участник","Зиганшина АльфияНурисламовна","Муниципальное бюджетное общеобразовательное учреждение \"Русско-татарская средняя общеобразовательная школа №129\"","Родная (татарская) литература для обучающихся – татар школ с русским языком обучения"]
[110,"Советский район","Муниципальное бюджетное общеобразовательное учреждение \"Средняя общеобразовательная школа №167 с углубленным изучением отдельных предметов\" Советского района г. Казани","Мухаметзянов","А.","А.",7,20.5,null,{"$f":"I112+H112","v":20.5},35,"Участник","Набиуллина ЗульфияХатиповна","Муниципальное бюджетное общеобразовательное учреждение \"Средняя общеобразовательная школа №167 с углубленным изучением отдельных предметов\" Советского района г. Казани","Родная (татарская) литература для обучающихся – татар школ с русским языком обучения"]
[111,"Советский район","Муниципальное бюджетное общеобразовательное учреждение \"Средняя общеобразовательная школа №167 с углубленным изучением отдельных предметов\" Советского района г. Казани","Мухаметзянова","А.","А.",10,51,null,{"$f":"I113+H113","v":51},55,"Призер","Садриева ЭльмираИльмасовна","Муниципальное бюджетное общеобразовательное учреждение \"Средняя общеобразовательная школа №167 с углубленным изучением отдельных предметов\" Советского района г. Казани","Родная (татарская) литература для обучающихся – татар школ с русским языком обучения"]
[112,"Кировский район","Муниципальное автономное общеобразовательное учреждение \"Гимназия - интернат №4\" Кировского района г.Казани","Мухаметова","И.","А.",10,27,null,{"$f":"I114+H114","v":27},55,"Участник","Садыкова РамзияГабидулловна","Муниципальное автономное общеобразовательное учреждение \"Гимназия - интернат №4\" Кировского района г.Казани","Родная (татарская) литература для обучающихся – татар школ с русским языком обучения"]
[113,"Советский район","Муниципальное бюджетное общеобразовательное учреждение \"Средняя общеобразовательная школа № 47\" Советского района г. Казани\"","Мухлисова","Г.","Д.",9,12.5,null,{"$f":"I115+H115","v":12.5},40,"Участник","Шангараева ГульчачакНургалиевна","Муниципальное бюджетное общеобразовательное учреждение \"Средняя общеобразовательная школа № 47\" Советского района г. Казани\"","Родная (татарская) литература для обучающихся – татар школ с русским языком обучения"]
[114,"Кировский район","Муниципальное автономное общеобразовательное учреждение \"Гимназия - интернат №4\" Кировского района г.Казани","Набиева","Р.","И.",8,10,null,10,35,"Участник","Садыкова РамзияГабидулловна","Муниципальное автономное общеобразовательное учреждение \"Гимназия - интернат №4\" Кировского района г.Казани","Родная (татарская) литература для обучающихся – татар школ с русским языком обучения"]
[115,"Приволжский район","Муниципальное бюджетное общеобразовательное учреждение \"Гимназия №6\"","Нигматулина","А.","Р.",9,27,null,{"$f":"I117+H117","v":27},40,"Участник","Низамиева ЛилияНазимовна","Муниципальное бюджетное общеобразовательное учреждение \"Гимназия №6\"","Родная (татарская) литература для обучающихся – татар школ с русским языком обучения"]
[116,"Авиастроительный район","Муниципальное бюджетное общеобразовательное учреждение \"Гимназия  №33\" Авиастроительного района г.Казани\"","Нигматуллина","А.","И.",7,14.5,null,{"$f":"I118+H118","v":14.5},35,"Участник","Хуснутдинова АльбинаАнваровна","Муниципальное бюджетное общеобразовательное учреждение \"Гимназия  №33\" Авиастроительного района г.Казани\"","Родная (татарская) литература для обучающихся – татар школ с русским языком обучения"]
[117,"Советский район","Муниципальное бюджетное общеобразовательное учреждение \"Средняя общеобразовательная школа № 144 с углубленным изучением отдельных предметов\" Советского района г.Казани\"","Низамова","А.","Х.",9,18,null,{"$f":"I119+H119","v":18},40,"Участник","Муслимова РамзияВакиповна","Муниципальное бюджетное общеобразовательное учреждение \"Средняя общеобразовательная школа № 144 с углубленным изучением отдельных предметов\" Советского района г.Казани\"","Родная (татарская) литература для обучающихся – татар школ с русским языком обучения"]
[118,"Приволжский район","Муниципальное бюджетное общеобразовательное учреждение \"Лицей №35 - образовательный центр \"Галактика\" Приволжского района города Казани\"","Нугуманова","К.","К.",10,38,null,{"$f":"I120+H120","v":38},55,"Участник","Гилязова ГульнараФаиловна","Муниципальное бюджетное общеобразовательное учреждение \"Лицей №35 - образовательный центр \"Галактика\" Приволжского района города Казани\"","Родная (татарская) литература для обучающихся – татар школ с русским языком обучения"]
[119,"Советский район","Муниципальное бюджетное общеобразовательное учреждение \"Средняя общеобразовательная школа № 171 с углубленным изучением отдельных предметов\" Советского района г.Казани","Нурмиева","Д.","Р.",8,16,null,16,35,"Участник","Каримова ЗульфияИлдаровна","Муниципальное бюджетное общеобразовательное учреждение \"Средняя общеобразовательная школа № 171 с углубленным изучением отдельных предметов\" Советского района г.Казани","Родная (татарская) литература для обучающихся – татар школ с русским языком обучения"]
[120,"Авиастроительный район","Муниципальное бюджетное общеобразовательное учреждение \"Гимназия  №33\" Авиастроительного района г.Казани\"","Петрова","Д.","А.",10,28,null,{"$f":"I122+H122","v":28},55,"Участник","Петрова ГузалияРузаловна","Муниципальное бюджетное общеобразовательное учреждение \"Гимназия  №33\" Авиастроительного района г.Казани\"","Родная (татарская) литература для обучающихся – татар школ с русским языком обучения"]
[121,"Приволжский район","Муниципальное бюджетное общеобразовательное учреждение \"Лицей №35 - образовательный центр \"Галактика\" Приволжского района города Казани\"","Рахимзянова","А.","И.",10,36,null,{"$f":"I123+H123","v":36},55,"Участник","Гилязова ГульнараФаиловна","Муниципальное бюджетное общеобразовательное учреждение \"Лицей №35 - образовательный центр \"Галактика\" Приволжского района города Казани\"","Родная (татарская) литература для обучающихся – татар школ с русским языком обучения"]
[122,"Приволжский район","Муниципальное бюджетное общеобразовательное учреждение \"Русско-татарская средняя общеобразовательная школа №129\"","Рахимова","А.","И.",7,17,null,{"$f":"I124+H124","v":17},35,"Участник","Салимулина ГульчачакВалинуровна","Муниципальное бюджетное общеобразовательное учреждение \"Русско-татарская средняя общеобразовательная школа №129\"","Родная (татарская) литература для обучающихся – татар школ с русским языком обучения"]
[123,"Советский район","Муниципальное бюджетное общеобразовательное учреждение \"Средняя общеобразовательная школа № 171 с углубленным изучением отдельных предметов\" Советского района г.Казани","Рахматуллина","З.","Р.",8,19,null,19,35,"Участник","Каримова ЗульфияИлдаровна","Муниципальное бюджетное общеобразовательное учреждение \"Средняя общеобразовательная школа № 171 с углубленным изучением отдельных предметов\" Советского района г.Казани","Родная (татарская) литература для обучающихся – татар школ с русским языком обучения"]
[124,"Приволжский район","Муниципальное бюджетное общеобразовательное учреждение \"Средняя общеобразовательная школа №42\"","Сабитова","Н.","Б.",9,39,null,{"$f":"I126+H126","v":39},40,"Призер","Заитова ГузалияАхтямовна","Муниципальное бюджетное общеобразовательное учреждение \"Средняя общеобразовательная школа №42\"","Родная (татарская) литература для обучающихся – татар школ с русским языком обучения"]
[125,"Советский район","Муниципальное бюджетное общеобразовательное учреждение \"Гимназия №175\" Советского района г.Казани","Сагдеева","Р.","Н.",8,27,null,27,35,"Призер","Галиуллина ДиляраАхмадулловна","Муниципальное бюджетное общеобразовательное учреждение \"Гимназия №175\" Советского района г.Казани","Родная (татарская) литература для обучающихся – татар школ с русским языком обучения"]
[126,"Советский район","Муниципальное бюджетное общеобразовательное учреждение \"Средняя общеобразовательная школа № 171 с углубленным изучением отдельных предметов\" Советского района г.Казани","Садриев","К.","Р.",7,26.5,null,{"$f":"I128+H128","v":26.5},35,"Призер","Ахатова ГелюсяШаукатовна","Муниципальное бюджетное общеобразовательное учреждение \"Средняя общеобразовательная школа № 171 с углубленным изучением отдельных предметов\" Советского района г.Казани","Родная (татарская) литература для обучающихся – татар школ с русским языком обучения"]
[127,"Ново-Савиновский район","Муниципальное бюджетное общеобразовательное учреждение \"Лицей №177\" Ново-Савиновского района г. Казани\"","Саетов","Р.","И.",10,9,null,{"$f":"I129+H129","v":9},55,"Участник","Исхакова ЛилияШаукатовна","Муниципальное бюджетное общеобразовательное учреждение \"Лицей №177\" Ново-Савиновского района г. Казани\"","Родная (татарская) литература для обучающихся – татар школ с русским языком обучения"]
[128,"Советский район","Муниципальное бюджетное общеобразовательное учреждение \"Средняя общеобразовательная школа № 169\" Советского района г.Казани\"","Сайфутдинова","Г.","Р.",8,30,null,30,35,"Призер","Хамидуллина ЛюцияСаетгараевна","Муниципальное бюджетное общеобразовательное учреждение \"Средняя общеобразовательная школа № 169\" Советского района г.Казани\"","Родная (татарская) литература для обучающихся – татар школ с русским языком обучения"]
[130,"Приволжский район","Муниципальное бюджетное общеобразовательное учреждение \"Гимназия №6\"","Салахова","И.","И.",7,21.5,null,{"$f":"I131+H131","v":21.5},35,"Участник","Гильманова ЭльмираХайдаровна","Муниципальное бюджетное общеобразовательное учреждение \"Гимназия №6\"","Родная (татарская) литература для обучающихся – татар школ с русским языком обучения"]
[129,"Советский район","Муниципальное бюджетное общеобразовательное учреждение \"Средняя общеобразовательная школа №167 с углубленным изучением отдельных предметов\" Советского района г. Казани","Салахова","А.","Ф.",10,35,null,{"$f":"I132+H132","v":35},55,"Участник","Хальфина ВенераРафкатовна","Муниципальное бюджетное общеобразовательное учреждение \"Средняя общеобразовательная школа №167 с углубленным изучением отдельных предметов\" Советского района г. Казани","Родная (татарская) литература для обучающихся – татар школ с русским языком обучения"]
[131,"Авиастроительный район","Муниципальное бюджетное общеобразовательное учреждение \"Гимназия  №33\" Авиастроительного района г.Казани\"","Салахова","К.","И.",8,20,null,20,35,"Участник","Мусаяпова НасимаХайбулловна","Муниципальное бюджетное общеобразовательное учреждение \"Гимназия  №33\" Авиастроительного района г.Казани\"","Родная (татарская) литература для обучающихся – татар школ с русским языком обучения"]
[132,"Авиастроительный район","Муниципальное бюджетное общеобразовательное учреждение \"Средняя общеобразовательная школа № 54 с углубленным изучением отдельных предметов\" Авиастроительного района г.Казани\"","Самигуллина","Р.","А.",9,37,null,{"$f":"I134+H134","v":37},40,"Призер","Аскарова РаисаРаисовна","Муниципальное бюджетное общеобразовательное учреждение \"Средняя общеобразовательная школа № 54 с углубленным изучением отдельных предметов\" Авиастроительного района г.Казани\"","Родная (татарская) литература для обучающихся – татар школ с русским языком обучения"]
[133,"Кировский район","Муниципальное бюджетное общеобразовательное учреждение \"Средняя русско-татарская общеобразовательная школа №57\" г.Казани\"","Сатарова","И.","Ш.",10,25,null,{"$f":"I135+H135","v":25},55,"Участник","Маткулова ЧулпанФердусовна","Муниципальное бюджетное общеобразовательное учреждение \"Средняя русско-татарская общеобразовательная школа №57\" г.Казани\"","Родная (татарская) литература для обучающихся – татар школ с русским языком обучения"]
[135,"Московский район","Муниципальное бюджетное общеобразовательное учреждение \"Гимназия № 122 имени Ж.А.Зайцевой\"Московского района г. Казани\"","Сафина","А.","Р.",8,33,null,33,35,"Победитель","Зейналова ГульнараНаилевна","Муниципальное бюджетное общеобразовательное учреждение \"Гимназия № 122 имени Ж.А.Зайцевой\"Московского района г. Казани\"","Родная (татарская) литература для обучающихся – татар школ с русским языком обучения"]
[136,"Ново-Савиновский район","Муниципальное бюджетное общеобразовательное учреждение \"Гимназия №7 имени Героя России А.В.Козина\" Ново-Савиновского района г. Казани\"","Сафина","А.","И.",8,27,2,29,35,"Призер","Набиуллина ТаслимаГиниятовна","Муниципальное бюджетное общеобразовательное учреждение \"Гимназия №7 имени Героя России А.В.Козина\" Ново-Савиновского района г. Казани\"","Родная (татарская) литература для обучающихся – татар школ с русским языком обучения"]
[134,"Приволжский район","Муниципальное бюджетное общеобразовательное учреждение \"Лицей №83 - Центр образования\"","Сафина","А.","Р.",10,27,null,{"$f":"I138+H138","v":27},55,"Участник","Галиева АлсуИльгизовна","Муниципальное бюджетное общеобразовательное учреждение \"Лицей №83 - Центр образования\"","Родная (татарская) литература для обучающихся – татар школ с русским языком обучения"]
[137,"Советский район","Муниципальное бюджетное общеобразовательное учреждение \"Гимназия № 90\" Советского района г.Казани\"","Семенова","А.","В.",8,22,null,22,35,"Участник","Салахова ИлюсаАдиповна","Муниципальное бюджетное общеобразовательное учреждение \"Гимназия № 90\" Советского района г.Казани\"","Родная (татарская) литература для обучающихся – татар школ с русским языком обучения"]
[138,"Авиастроительный район","Муниципальное бюджетное общеобразовательное учреждение \"Гимназия  №33\" Авиастроительного района г.Казани\"","Сибгатов","Б.","Р.",9,31,null,{"$f":"I140+H140","v":31},40,"Участник","Петрова ГузалияРузаловна","Муниципальное бюджетное общеобразовательное учреждение \"Гимназия  №33\" Авиастроительного района г.Казани\"","Родная (татарская) литература для обучающихся – татар школ с русским языком обучения"]
[139,"Приволжский район","Муниципальное бюджетное общеобразовательное учреждение \"Русско-татарская средняя общеобразовательная школа №129\"","Сибгатуллина","А.","И.",11,40,null,{"$f":"I141+H141","v":40},60,"Участник","Зиганшина АльфияНурисламовна","Муниципальное бюджетное общеобразовательное учреждение \"Русско-татарская средняя общеобразовательная школа №129\"","Родная (татарская) литература для обучающихся – татар школ с русским языком обучения"]
[140,"Советский район","Муниципальное бюджетное общеобразовательное учреждение \"Лицей № 159\" Советского района г.Казани\"","Тагирова","А.","А.",11,33,null,{"$f":"I142+H142","v":33},60,"Участник","Галимуллина ЛилияФаргатовна","Муниципальное бюджетное общеобразовательное учреждение \"Лицей № 159\" Советского района г.Казани\"","Родная (татарская) литература для обучающихся – татар школ с русским языком обучения"]
[141,"Приволжский район","Муниципальное бюджетное общеобразовательное учреждение \"Лицей №83 - Центр образования\"","Тазиев","Т.","И.",9,28,null,{"$f":"I143+H143","v":28},40,"Участник","Абдуллина АлсуЗуфаровна","Муниципальное бюджетное общеобразовательное учреждение \"Лицей №83 - Центр образования\"","Родная (татарская) литература для обучающихся – татар школ с русским языком обучения"]
[142,"Советский район","Муниципальное автономное общеобразовательное учреждение \"Лицей №121 имени Героя Советского Союза С.А.Ахтямова\" Советского района г.Казани","Тазиева","А.","Н.",10,44,null,{"$f":"I144+H144","v":44},55,"Призер","Валиуллина РамзияХашимовна","Муниципальное автономное общеобразовательное учреждение \"Лицей №121 имени Героя Советского Союза С.А.Ахтямова\" Советского района г.Казани","Родная (татарская) литература для обучающихся – татар школ с русским языком обучения"]
[143,"Ново-Савиновский район","Государственное автономное общеобразовательное учреждение \"Полилингвальный комплекс \"Адымнар - путь к знаниям и согласию\" г. Казани\"","Тухватуллин","А.","Э.",8,9,null,9,35,"Участник","Гараева ЛилияИдрисовна","Государственное автономное общеобразовательное учреждение \"Полилингвальный комплекс \"Адымнар - путь к знаниям и согласию\" г. Казани\"","Родная (татарская) литература для обучающихся – татар школ с русским языком обучения"]
[144,"Советский район","Муниципальное бюджетное общеобразовательное учреждение \"Средняя общеобразовательная школа № 171 с углубленным изучением отдельных предметов\" Советского района г.Казани","Фазлиахметов","И.","И.",7,22.5,null,{"$f":"I146+H146","v":22.5},35,"Участник","Ахатова ГелюсяШаукатовна","Муниципальное бюджетное общеобразовательное учреждение \"Средняя общеобразовательная школа № 171 с углубленным изучением отдельных предметов\" Советского района г.Казани","Родная (татарская) литература для обучающихся – татар школ с русским языком обучения"]
[145,"Авиастроительный район","Муниципальное бюджетное общеобразовательное учреждение \"Лицей №145\" Авиастроительного района г.Казани\"","Фазылзянова","Д.","А.",8,25,null,25,35,"Участник","Захарова МарияПавловна","Муниципальное бюджетное общеобразовательное учреждение \"Лицей №145\" Авиастроительного района г.Казани\"","Родная (татарская) литература для обучающихся – татар школ с русским языком обучения"]
[146,"Ново-Савиновский район","Государственное автономное общеобразовательное учреждение \"Полилингвальный комплекс \"Адымнар - путь к знаниям и согласию\" г. Казани\"","Файзова","А.","И.",8,14,null,14,35,"Участник","Сафарова АлсуГабдулхаковна","Государственное автономное общеобразовательное учреждение \"Полилингвальный комплекс \"Адымнар - путь к знаниям и согласию\" г. Казани\"","Родная (татарская) литература для обучающихся – татар школ с русским языком обучения"]
[147,"Советский район","Муниципальное бюджетное общеобразовательное учреждение \"Гимназия № 90\" Советского района г.Казани\"","Файзулина","А.","Ф.",10,39,null,{"$f":"I149+H149","v":39},55,"Участник","Габдулхакова ГульчачакРашитовна","Муниципальное бюджетное общеобразовательное учреждение \"Гимназия № 90\" Советского района г.Казани\"","Родная (татарская) литература для обучающихся – татар школ с русским языком обучения"]
[148,"Советский район","Муниципальное бюджетное общеобразовательное учреждение \"Средняя общеобразовательная школа №167 с углубленным изучением отдельных предметов\" Советского района г. Казани","Фасихова","Д.","Н.",9,30,null,{"$f":"I150+H150","v":30},40,"Участник","Садриева ЭльмираИльмасовна","Муниципальное бюджетное общеобразовательное учреждение \"Средняя общеобразовательная школа №167 с углубленным изучением отдельных предметов\" Советского района г. Казани","Родная (татарская) литература для обучающихся – татар школ с русским языком обучения"]
[149,"Советский район","Муниципальное бюджетное общеобразовательное учреждение \"Гимназия № 90\" Советского района г.Казани\"","Фаттахова","А.","Р.",8,10,null,10,35,"Участник","Салахова ИлюсаАдиповна","Муниципальное бюджетное общеобразовательное учреждение \"Гимназия № 90\" Советского района г.Казани\"","Родная (татарская) литература для обучающихся – татар школ с русским языком обучения"]
[150,"Советский район","Муниципальное бюджетное общеобразовательное учреждение \"Многопрофильная школа №181\" Советского района г. Казани\"","Фатхиева","А.","А.",8,10,null,10,35,"Участник","Валиуллина АльфинурФакиловна","Муниципальное бюджетное общеобразовательное учреждение \"Многопрофильная школа №181\" Советского района г. Казани\"","Родная (татарская) литература для обучающихся – татар школ с русским языком обучения"]
[151,"Советский район","Муниципальное бюджетное общеобразовательное учреждение \"Гимназия № 20 имени Абдуллы Алиша\" Советского района города Казани\"","Фатыхов","Н.","Р.",10,29,null,{"$f":"I153+H153","v":29},55,"Участник","Фахрутдинова ГульшатМухаметовна","Муниципальное бюджетное общеобразовательное учреждение \"Гимназия № 20 имени Абдуллы Алиша\" Советского района города Казани\"","Родная (татарская) литература для обучающихся – татар школ с русским языком обучения"]
[152,"Ново-Савиновский район","Государственное автономное общеобразовательное учреждение \"Полилингвальный комплекс \"Адымнар - путь к знаниям и согласию\" г. Казани\"","Хабибрахманова","Т.","Т.",7,17,null,{"$f":"I154+H154","v":17},35,"Участник","Габдулина АльмираФердинантовна","Государственное автономное общеобразовательное учреждение \"Полилингвальный комплекс \"Адымнар - путь к знаниям и согласию\" г. Казани\"","Родная (татарская) литература для обучающихся – татар школ с русским языком обучения"]
[153,"Ново-Савиновский район","Государственное автономное общеобразовательное учреждение \"Полилингвальный комплекс \"Адымнар - путь к знаниям и согласию\" г. Казани\"","Хабибуллин","А.","Р.",7,14.5,null,{"$f":"I155+H155","v":14.5},35,"Участник","Гараева ЛилияИдрисовна","Государственное автономное общеобразовательное учреждение \"Полилингвальный комплекс \"Адымнар - путь к знаниям и согласию\" г. Казани\"","Родная (татарская) литература для обучающихся – татар школ с русским языком обучения"]
[154,"Советский район","Муниципальное бюджетное общеобразовательное учреждение \"Гимназия № 20 имени Абдуллы Алиша\" Советского района города Казани\"","Хабибуллин","В.","И.",8,8,null,8,35,"Участник","Галиева ГульназШамиловна","Муниципальное бюджетное общеобразовательное учреждение \"Гимназия № 20 имени Абдуллы Алиша\" Советского района города Казани\"","Родная (татарская) литература для обучающихся – татар школ с русским языком обучения"]
[157,"Авиастроительный район","Муниципальное бюджетное общеобразовательное учреждение \"Лицей №26 им. М.Джалиля\" Авиастроительного района г.Казани\"","Хабибуллина","А.","Р.",9,40,null,{"$f":"I157+H157","v":40},40,"Победитель","Камалеева ЗолфияМиннуровна","Муниципальное бюджетное общеобразовательное учреждение \"Лицей №26 им. М.Джалиля\" Авиастроительного района г.Казани\"","Родная (татарская) литература для обучающихся – татар школ с русским языком обучения"]
[156,"Советский район","Муниципальное бюджетное общеобразовательное учреждение \"Гимназия № 90\" Советского района г.Казани\"","Хабибуллина","А.","М.",7,22,null,{"$f":"I158+H158","v":22},35,"Участник","Габдулхакова ГульчачакРашитовна","Муниципальное бюджетное общеобразовательное учреждение \"Гимназия № 90\" Советского района г.Казани\"","Родная (татарская) литература для обучающихся – татар школ с русским языком обучения"]
[155,"Приволжский район","Муниципальное автономное общеобразовательное учреждение \"Гимназия № 139\"","Хабибуллина","Р.","Р.",11,27,null,{"$f":"I159+H159","v":27},60,"Участник","Калимуллина РезедаРафкатовна","Муниципальное автономное общеобразовательное учреждение \"Гимназия № 139\"","Родная (татарская) литература для обучающихся – татар школ с русским языком обучения"]
[158,"Приволжский район","Муниципальное бюджетное общеобразовательное учреждение \"Средняя общеобразовательная школа №24 с углубленным изучением отдельных предметов\"","Хадиатуллина","К.","Р.",9,26,null,{"$f":"I160+H160","v":26},40,"Участник","Халиуллина ГолсиринАхметовна","Муниципальное бюджетное общеобразовательное учреждение \"Средняя общеобразовательная школа №24 с углубленным изучением отдельных предметов\"","Родная (татарская) литература для обучающихся – татар школ с русским языком обучения"]
[159,"Ново-Савиновский район","Муниципальное бюджетное общеобразовательное учреждение \"Средняя общеобразовательная школа №170 с углубленным изучением отдельных предметов\" Ново-Савиновского района г. Казани\"","Хазиева","А.","Р.",8,31,null,31,35,"Победитель","Гарипова ИльгизаРифкатовна","Муниципальное бюджетное общеобразовательное учреждение \"Средняя общеобразовательная школа №170 с углубленным изучением отдельных предметов\" Ново-Савиновского района г. Казани\"","Родная (татарская) литература для обучающихся – татар школ с русским языком обучения"]
[160,"Ново-Савиновский район","Государственное автономное общеобразовательное учреждение \"Полилингвальный комплекс \"Адымнар - путь к знаниям и согласию\" г. Казани\"","Хайруллина","А.","А.",7,6,null,{"$f":"I162+H162","v":6},35,"Участник","Гараева ЛилияИдрисовна","Государственное автономное общеобразовательное учреждение \"Полилингвальный комплекс \"Адымнар - путь к знаниям и согласию\" г. Казани\"","Родная (татарская) литература для обучающихся – татар школ с русским языком обучения"]
[161,"Приволжский район","Муниципальное бюджетное общеобразовательное учреждение \"Гимназия №6\"","Хайрутдинова","А.","А.",7,24.5,null,24.5,35,"Призер","Гильманова ЭльмираХайдаровна","Муниципальное бюджетное общеобразовательное учреждение \"Гимназия №6\"","Родная (татарская) литература для обучающихся – татар школ с русским языком обучения"]
[162,"Авиастроительный район","Муниципальное бюджетное общеобразовательное учреждение \"Гимназия  №33\" Авиастроительного района г.Казани\"","Хакимов","И.","А.",7,11.5,null,11.5,35,"Участник","Хуснутдинова АльбинаАнваровна","Муниципальное бюджетное общеобразовательное учреждение \"Гимназия  №33\" Авиастроительного района г.Казани\"","Родная (татарская) литература для обучающихся – татар школ с русским языком обучения"]
[163,"Советский район","Муниципальное бюджетное общеобразовательное учреждение \"Средняя общеобразовательная школа № 84 с углубленным изучением иностранных языков\" Советского района г. Казани\"","Хакимова","Н.","Р.",10,43,3,46,55,"Призер","Хакимова ГульнараКотдусовна","Муниципальное бюджетное общеобразовательное учреждение \"Средняя общеобразовательная школа № 84 с углубленным изучением иностранных языков\" Советского района г. Казани\"","Родная (татарская) литература для обучающихся – татар школ с русским языком обучения"]
[164,"Авиастроительный район","Муниципальное бюджетное общеобразовательное учреждение \"Гимназия  №33\" Авиастроительного района г.Казани\"","Хакимова","Р.","А.",11,49,null,49,60,"Призер","Мусаяпова Насима Хайбулловна","МБОУ \"Гимназия №33\"","Родная (татарская) литература для обучающихся – татар школ с русским языком обучения"]
[166,"Авиастроительный район","Муниципальное бюджетное общеобразовательное учреждение \"Гимназия  №33\" Авиастроительного района г.Казани\"","Хакимова","Э.","А.",9,36,null,36,40,"Призер","Шакирова РасулаГабделвалиевна","Муниципальное бюджетное общеобразовательное учреждение \"Гимназия  №33\" Авиастроительного района г.Казани\"","Родная (татарская) литература для обучающихся – татар школ с русским языком обучения"]
[165,"Кировский район","Муниципальное автономное общеобразовательное учреждение \"Гимназия - интернат №4\" Кировского района г.Казани","Хакимова","М.","И.",7,15,null,15,35,"Участник","Садыкова РамзияГабидулловна","Муниципальное автономное общеобразовательное учреждение \"Гимназия - интернат №4\" Кировского района г.Казани","Родная (татарская) литература для обучающихся – татар школ с русским языком обучения"]
[167,"Приволжский район","Муниципальное бюджетное общеобразовательное учреждение \"Лицей №83 - Центр образования\"","Халикова","А.","Р.",7,22,null,22,35,"Участник","Галимова ГульшатНаилевна","Муниципальное бюджетное общеобразовательное учреждение \"Лицей №83 - Центр образования\"","Родная (татарская) литература для обучающихся – татар школ с русским языком обучения"]
[168,"Авиастроительный район","Муниципальное бюджетное общеобразовательное учреждение \"Средняя общеобразовательная школа № 54 с углубленным изучением отдельных предметов\" Авиастроительного района г.Казани\"","Халилова","А.","Р.",9,33,null,33,40,"Участник","Аскарова РаисаРаисовна","Муниципальное бюджетное общеобразовательное учреждение \"Средняя общеобразовательная школа № 54 с углубленным изучением отдельных предметов\" Авиастроительного района г.Казани\"","Родная (татарская) литература для обучающихся – татар школ с русским языком обучения"]
[169,"Советский район","Муниципальное бюджетное общеобразовательное учреждение \"Средняя общеобразовательная школа № 47\" Советского района г. Казани\"","Хамзина","А.","Р.",8,10,null,10,35,"Участник","Шангараева ГульчачакНургалиевна","Муниципальное бюджетное общеобразовательное учреждение \"Средняя общеобразовательная школа № 47\" Советского района г. Казани\"","Родная (татарская) литература для обучающихся – татар школ с русским языком обучения"]
[170,"Советский район","Муниципальное автономное общеобразовательное учреждение \"Лицей №121 имени Героя Советского Союза С.А.Ахтямова\" Советского района г.Казани","Ханмурзин","Р.","З.",10,36,null,{"$f":"I172+H172","v":36},55,"Участник","Валиуллина РамзияХашимовна","Муниципальное автономное общеобразовательное учреждение \"Лицей №121 имени Героя Советского Союза С.А.Ахтямова\" Советского района г.Казани","Родная (татарская) литература для обучающихся – татар школ с русским языком обучения"]
[171,"Советский район","Муниципальное автономное общеобразовательное учреждение \"Лицей №121 имени Героя Советского Союза С.А.Ахтямова\" Советского района г.Казани","Хасанзянов","Р.","Р.",10,41,null,{"$f":"I173+H173","v":41},55,"Призер","Валиуллина РамзияХашимовна","Муниципальное автономное общеобразовательное учреждение \"Лицей №121 имени Героя Советского Союза С.А.Ахтямова\" Советского района г.Казани","Родная (татарская) литература для обучающихся – татар школ с русским языком обучения"]
[172,"Приволжский район","Муниципальное бюджетное общеобразовательное учреждение \"Татарско-русская средняя общеобразовательная школа №10 с углубленным изучением отдельных предметов\"","Хасаншина","Л.","Р.",9,28,null,{"$f":"I174+H174","v":28},40,"Участник","Хайрутдинова АлсуНаиловна","Муниципальное бюджетное общеобразовательное учреждение \"Татарско-русская средняя общеобразовательная школа №10 с углубленным изучением отдельных предметов\"","Родная (татарская) литература для обучающихся – татар школ с русским языком обучения"]
[173,"Советский район","Муниципальное бюджетное общеобразовательное учреждение \"Средняя общеобразовательная школа № 171 с углубленным изучением отдельных предметов\" Советского района г.Казани","Хасбиуллина","Л.","Ф.",11,45,null,{"$f":"I175+H175","v":45},60,"Участник","Каримова ЗульфияИлдаровна","Муниципальное бюджетное общеобразовательное учреждение \"Средняя общеобразовательная школа № 171 с углубленным изучением отдельных предметов\" Советского района г.Казани","Родная (татарская) литература для обучающихся – татар школ с русским языком обучения"]
[174,"Советский район","Муниципальное бюджетное общеобразовательное учреждение \"Гимназия №175\" Советского района г.Казани","Хафизова","Ф.","И.",10,48,null,{"$f":"I176+H176","v":48},55,"Призер","Гафарова ГульнараГалимхановна","Муниципальное бюджетное общеобразовательное учреждение \"Гимназия №175\" Советского района г.Казани","Родная (татарская) литература для обучающихся – татар школ с русским языком обучения"]
[175,"Ново-Савиновский район","Муниципальное бюджетное общеобразовательное учреждение \"Гимназия №7 имени Героя России А.В.Козина\" Ново-Савиновского района г. Казани\"","Хисамеева","Э.","И.",8,26,2,28,35,"Призер","Набиуллина ТаслимаГиниятовна","Муниципальное бюджетное общеобразовательное учреждение \"Гимназия №7 имени Героя России А.В.Козина\" Ново-Савиновского района г. Казани\"","Родная (татарская) литература для обучающихся – татар школ с русским языком обучения"]
[176,"Ново-Савиновский район","Муниципальное бюджетное общеобразовательное учреждение \"Гимназия №179 - центр образования\" Ново-Савиновского района г.Казани\"","Хисматова","А.","И.",10,48,null,{"$f":"I178+H178","v":48},55,"Призер","Габдеева ФаридаРафаэлевна","Муниципальное бюджетное общеобразовательное учреждение \"Гимназия №179 - центр образования\" Ново-Савиновского района г.Казани\"","Родная (татарская) литература для обучающихся – татар школ с русским языком обучения"]
[177,"Ново-Савиновский район","Муниципальное бюджетное общеобразовательное учреждение \"Лицей №177\" Ново-Савиновского района г. Казани\"","Хузина","А.","З.",10,26,null,{"$f":"I179+H179","v":26},55,"Участник","Исхакова ЛилияШаукатовна","Муниципальное бюджетное общеобразовательное учреждение \"Лицей №177\" Ново-Савиновского района г. Казани\"","Родная (татарская) литература для обучающихся – татар школ с русским языком обучения"]
[178,"Советский район","Муниципальное бюджетное общеобразовательное учреждение \"Средняя общеобразовательная школа №167 с углубленным изучением отдельных предметов\" Советского района г. Казани","Хусаенова","А.","Р.",9,39,null,{"$f":"I180+H180","v":39},40,"Призер","Садриева ЭльмираИльмасовна","Муниципальное бюджетное общеобразовательное учреждение \"Средняя общеобразовательная школа №167 с углубленным изучением отдельных предметов\" Советского района г. Казани","Родная (татарская) литература для обучающихся – татар школ с русским языком обучения"]
[179,"Приволжский район","Муниципальное бюджетное общеобразовательное учреждение \"Лицей №35 - образовательный центр \"Галактика\" Приволжского района города Казани\"","Шайехова","М.","Р.",10,23,null,{"$f":"I181+H181","v":23},55,"Участник","Гилязова ГульнараФаиловна","Муниципальное бюджетное общеобразовательное учреждение \"Лицей №35 - образовательный центр \"Галактика\" Приволжского района города Казани\"","Родная (татарская) литература для обучающихся – татар школ с русским языком обучения"]
[180,"Приволжский район","Муниципальное бюджетное общеобразовательное учреждение \"Лицей №83 - Центр образования\"","Шаймарданов","Н.","М.",9,19,null,{"$f":"I182+H182","v":19},40,"Участник","Абдуллина АлсуЗуфаровна","Муниципальное бюджетное общеобразовательное учреждение \"Лицей №83 - Центр образования\"","Родная (татарская) литература для обучающихся – татар школ с русским языком обучения"]
[182,"Ново-Савиновский район","Государственное автономное общеобразовательное учреждение \"Полилингвальный комплекс \"Адымнар - путь к знаниям и согласию\" г. Казани\"","Шайхутдинова","З.","Р.",8,16,null,16,35,"Участник","Сафарова АлсуГабдулхаковна","Государственное автономное общеобразовательное учреждение \"Полилингвальный комплекс \"Адымнар - путь к знаниям и согласию\" г. Казани\"","Родная (татарская) литература для обучающихся – татар школ с русским языком обучения"]
[181,"Вахитовский район","Общеобразовательная школа-интернат \"Лицей имени Н.И. Лобачевского\" федерального государственного автономного образовательного учреждения высшего профессионального образования \"Казанский (Приволжский) федеральный университет\"","Шайхутдинова","Л.","И.",8,6,null,6,35,"Участник","Харисова ГульназФаритовна","Общеобразовательная школа-интернат \"Лицей имени Н.И. Лобачевского\" федерального государственного автономного образовательного учреждения высшего профессионального образования \"Казанский (Приволжский) федеральный университет\"","Родная (татарская) литература для обучающихся – татар школ с русским языком обучения"]
[183,"Ново-Савиновский район","Муниципальное бюджетное общеобразовательное учреждение \"Гимназия №179 - центр образования\" Ново-Савиновского района г.Казани\"","Шамкина","Д.","М.",9,35,3,{"$f":"I185+H185","v":38},40,"Призер","Ахметзянова АльфияФаруховна","Муниципальное бюджетное общеобразовательное учреждение \"Гимназия №179 - центр образования\" Ново-Савиновского района г.Казани\"","Родная (татарская) литература для обучающихся – татар школ с русским языком обучения"]
[185,"Приволжский район","Муниципальное бюджетное общеобразовательное учреждение \"Гимназия №6\"","Шарафиева","Ф.","И.",9,34,null,{"$f":"I186+H186","v":34},40,"Участник","Хуснутдинова ГульзираГилемхановна","Муниципальное бюджетное общеобразовательное учреждение \"Гимназия №6\"","Родная (татарская) литература для обучающихся – татар школ с русским языком обучения"]
[184,"Ново-Савиновский район","Муниципальное автономное общеобразовательное учреждение \"Лицей №146 \"Ресурс\" Ново-Савиновского района г. Казани\"","Шарафиева","А.","А.",7,21,null,{"$f":"I187+H187","v":21},35,"Участник","Гирфанова ЗилараРафаиловна","Муниципальное автономное общеобразовательное учреждение \"Лицей №146 \"Ресурс\" Ново-Савиновского района г. Казани\"","Родная (татарская) литература для обучающихся – татар школ с русским языком обучения"]
[186,"Ново-Савиновский район","Государственное автономное общеобразовательное учреждение \"Полилингвальный комплекс \"Адымнар - путь к знаниям и согласию\" г. Казани\"","Шарипов","И.","И.",8,22,null,22,35,"Участник","Хуснутдинова РаиляНуретдиновна","Государственное автономное общеобразовательное учреждение \"Полилингвальный комплекс \"Адымнар - путь к знаниям и согласию\" г. Казани\"","Родная (татарская) литература для обучающихся – татар школ с русским языком обучения"]
[187,"Советский район","Муниципальное бюджетное общеобразовательное учреждение «Средняя общеобразовательная школа с углубленным изучением отдельных предметов №184 им.М.И.Махмутова»","Шарифуллина","Д.","И.",7,24.5,null,{"$f":"I189+H189","v":24.5},35,"Призер","Ахметова ГульнараАхкамовна","Муниципальное бюджетное общеобразовательное учреждение «Средняя общеобразовательная школа с углубленным изучением отдельных предметов №184 им.М.И.Махмутова»","Родная (татарская) литература для обучающихся – татар школ с русским языком обучения"]
[188,"Советский район","Муниципальное бюджетное общеобразовательное учреждение \"Многопрофильная школа №181\" Советского района г. Казани\"","Шириева","А.","А.",8,6,null,6,35,"Участник","Валиуллина АльфинурФакиловна","Муниципальное бюджетное общеобразовательное учреждение \"Многопрофильная школа №181\" Советского района г. Казани\"","Родная (татарская) литература для обучающихся – татар школ с русским языком обучения"]
[189,"Приволжский район","Муниципальное бюджетное общеобразовательное учреждение \"Лицей №83 - Центр образования\"","Юнусов","М.","Р.",7,21,null,{"$f":"I191+H191","v":21},35,"Участник","Галиева АлсуИльгизовна","Муниципальное бюджетное общеобразовательное учреждение \"Лицей №83 - Центр образования\"","Родная (татарская) литература для обучающихся – татар школ с русским языком обучения"]
[190,"Ново-Савиновский район","Государственное автономное общеобразовательное учреждение \"Полилингвальный комплекс \"Адымнар - путь к знаниям и согласию\" г. Казани\"","Юнусова","К.","А.",8,27,null,27,35,"Призер","Хуснутдинова РаиляНуретдиновна","Государственное автономное общеобразовательное учреждение \"Полилингвальный комплекс \"Адымнар - путь к знаниям и согласию\" г. Казани\"","Родная (татарская) литература для обучающихся – татар школ с русским языком обучения"]
[191,"Советский район","Муниципальное бюджетное общеобразовательное учреждение \"Средняя общеобразовательная русско-татарская школа № 161\" Советского района г.Казани\"","Якупова","И.","Ф.",9,31,null,{"$f":"I193+H193","v":31},40,"Участник","Хабибуллина КлараАльбертовна","Муниципальное бюджетное общеобразовательное учреждение \"Средняя общеобразовательная русско-татарская школа № 161\" Советского района г.Казани\"","Родная (татарская) литература для обучающихся – татар школ с русским языком обучения"]
[192,"Приволжский район","Муниципальное бюджетное общеобразовательное учреждение \"Лицей №83 - Центр образования\"","Яруллин","Р.","Р.",9,20,null,{"$f":"I194+H194","v":20},40,"Участник","Абдуллина АлсуЗуфаровна","Муниципальное бюджетное общеобразовательное учреждение \"Лицей №83 - Центр образования\"","Родная (татарская) литература для обучающихся – татар школ с русским языком обучения"]
[193,"Авиастроительный район","Муниципальное бюджетное общеобразовательное учреждение \"Гимназия  №33\" Авиастроительного района г.Казани\"","Яруллина Ралина","Р.","Р.",9,35,null,{"$f":"I195+H195","v":35},40,"Участник","Шакирова РасулаГабделвалиевна","Муниципальное бюджетное общеобразовательное учреждение \"Гимназия  №33\" Авиастроительного района г.Казани\"","Родная (татарская) литература для обучающихся – татар школ с русским языком обучения"]
[194,"Приволжский район","Муниципальное бюджетное общеобразовательное учреждение \"Татарско-русская средняя общеобразовательная школа №10 с углубленным изучением отдельных предметов\"","Ярхамова","Э.","А.",7,28.5,null,{"$f":"I196+H196","v":28.5},35,"Призер","Хадиева ФаридаИльдусовна","Муниципальное бюджетное общеобразовательное учреждение \"Татарско-русская средняя общеобразовательная школа №10 с углубленным изучением отдельных предметов\"","Родная (татарская) литература для обучающихся – татар школ с русским языком обучения"]